[Event "Kashem Chowdhury Rating-A 2019"]
[Site "Dhaka"]
[Date "2019.05.07"]
[Round "4.5"]
[White "Md Aminul Islam"]
[Black "Mehdi Hasan Parag"]
[Result "0-1"]
[ECO "D38"]
[WhiteElo "2012"]
[BlackElo "2227"]
[Annotator "NA RC"]
[PlyCount "106"]
[EventDate "2019.05.04"]
[EventType "swiss"]
[EventCountry "BAN"]
[SourceTitle "playchess.com"]
[Source "ChessBase"]
[SourceQuality "1"]
[TimeControl "5400+30"]

1. d4 {[%emt 0:00:00]} Nf6 {[%emt 0:00:00]} 2. Nf3 {[%emt 0:00:00]} d5 {[%emt 0:00:00]} 3. c4 {[%emt 0:00:00]} e6 {[%emt 0:00:00]} 4. cxd5 {[%emt 0:00:00]} exd5 {[%emt 0:00:00]} 5. Nc3 {[%emt 0:00:11]} Bb4 {[%emt 0:00:00]} 6. Bg5 {[%emt 0:01:58]} h6 {[%emt 0:00:50]} 7. Bxf6 {[%emt 0:06:25]} Qxf6 {[%emt 0:00:12]} 8. e3 {[%emt 0:00:16]} O-O {[%emt 0:00:26]} 9. Rc1 {[%emt 0:02:55]} c6 {[%emt 0:00:26]} 10. Be2 {[%emt 0:05:31] D38: Queen's Gambit Declined: Ragozin Defence (4 Nf3 Bb4)} Nd7 {[%emt 0:01:26]} 11. O-O {[%emt 0:00:05]} Re8 {[%emt 0:00:19]} 12. a3 {[%emt 0:01:53]} Bd6 {[%emt 0:00:07]} 13. Qc2 $146 {[%emt 0:05:35]} ({Predecessor:} 13. b4 Qe7 14. Ne1 a5 15. Nd3 axb4 16. axb4 Bxb4 17. Nxb4 Qxb4 {0-1 (53) Gajewski,G (2581)-Corrales Jimenez,F (2586) ICC INT 2009}) 13... Nf8 {[%emt 0:02:39]} 14. Rb1 {[%emt 0:02:09]} a6 {[%emt 0:06:24]} 15. b4 {[%emt 0:00:30]} Qe7 {[%emt 0:00:32]} 16. Na4 {[%emt 0:00:10]} Bg4 {[%emt 0:02:07]} 17. Nc5 {[%emt 0:01:59]} Rad8 {[%emt 0:01:26]} 18. a4 {[%emt 0:00:29]} Rc8 {[%emt 0:10:11]} 19. Rfc1 {[%emt 0:00:46]} Ng6 {[%emt 0:00:38]} 20. h3 {[%emt 0:01:09]} Be6 {[%emt 0:05:08]} 21. Bd3 {[%emt 0:01:34]} Nf8 {[%emt 0:01:32]} 22. Bf1 {[%emt 0:10:12]} Rc7 {[%emt 0:00:59]} 23. Bd3 {[%emt 0:02:09]} Bc8 {[%emt 0:00:26]} 24. Re1 {[%emt 0:01:23]} Qd8 {[%emt 0:05:22]} 25. a5 {[%emt 0:05:41]} Rce7 {[%emt 0:00:43]} 26. Bf5 {[%emt 0:05:34]} g6 {[%emt 0:03:01]} 27. Bxc8 {[%emt 0:00:15]} Qxc8 {[%emt 0:00:02]} 28. e4 {[%emt 0:04:31]} (28. Rb3 $15) 28... Bxc5 {[%emt 0:59:04]} 29. bxc5 {[%emt 0:01:18]} Rxe4 {[%emt 0:00:00]} 30. Rxe4 {[%emt 0:00:51]} Rxe4 {[%emt 0:00:00]} 31. Qd2 {[%emt 0:00:43]} Kg7 {[%emt 0:00:00]} 32. Ne5 {[%emt 0:00:37]} Ne6 {[%emt 0:00:00]} 33. Rb4 $17 {[%emt 0:02:20]} Qc7 {[%emt 0:00:00]} 34. f3 {[%emt 0:05:22]} Rxd4 {[%emt 0:00:00]} 35. Rxd4 {[%emt 0:01:05]} Qxe5 {[%emt 0:00:00]} 36. Rb4 {[%emt 0:00:18]} Nxc5 {[%emt 0:00:00]} 37. Qb2 {[%emt 0:01:14]} Qxb2 {[%emt 0:00:00]} 38. Rxb2 {[%emt 0:00:09]} Kf6 {[%emt 0:00:00]} 39. f4 {[%emt 0:03:20]} Kf5 {[%emt 0:00:00]} 40. Rb4 {[%emt 0:00:08]} Ke6 {[%emt 0:00:00]} 41. Kf1 {[%emt 0:00:47]} Kd6 {[%emt 0:00:00]} 42. Ke2 {[%emt 0:00:07]} Kc7 {[%emt 0:00:00]} 43. f5 {[%emt 0:02:46]} g5 {[%emt 0:00:00]} 44. h4 {[%emt 0:02:10]} Ne4 {[%emt 0:00:00]} 45. Kf3 {[%emt 0:00:20]} gxh4 {[%emt 0:00:00]} 46. Kf4 {[%emt 0:00:48]} f6 {[%emt 0:00:00]} 47. Kg4 {[%emt 0:00:34]} c5 {[%emt 0:00:00]} 48. Rb1 {[%emt 0:01:27]} c4 {[%emt 0:00:00]} 49. Kxh4 {[%emt 0:00:25]} c3 {[%emt 0:00:00]} 50. Kg4 {[%emt 0:01:12]} d4 {[%emt 0:00:00]} 51. Kf4 {[%emt 0:01:21]} Nd2 {[%emt 0:00:00]} 52. Rc1 {[%emt 0:03:06]} Kd6 {[%emt 0:00:00]} 53. Kg3 {[%emt 0:00:15]} Kd5 {[%emt 0:12:30]} 0-1

[Event "Kashem Chowdhury Rating-A 2019"]
[Site "Dhaka"]
[Date "2019.05.07"]
[Round "4.6"]
[White "Rahman, Syed Mahfuzur"]
[Black "Subrota, Biswas"]
[Result "0-1"]
[ECO "D43"]
[WhiteElo "2217"]
[BlackElo "2086"]
[Annotator "NA"]
[PlyCount "62"]
[EventDate "2019.05.04"]
[EventType "swiss"]
[EventCountry "BAN"]
[SourceTitle "playchess.com"]
[Source "ChessBase"]
[SourceQuality "1"]
[TimeControl "5400+30"]

1. d4 {[%emt 0:00:00]} Nf6 {[%emt 0:00:00]} 2. Nf3 {[%emt 0:00:00]} d5 {[%emt 0:00:41]} 3. c4 {[%emt 0:00:08]} e6 {[%emt 0:00:03]} 4. Nc3 {[%emt 0:00:08]} c6 {[%emt 0:00:02]} 5. Bg5 {[%emt 0:03:41]} h6 {[%emt 1:31:44]} 6. Bxf6 {[%emt 0:04:17]} Qxf6 {[%emt 0:00:07]} 7. e3 {[%emt 0:00:13]} Nd7 {[%emt 0:00:02]} 8. Qc2 {[%emt 0:02:19]} g6 {[%emt 0:05:38]} 9. cxd5 {[%emt 0:05:20]} exd5 {[%emt 0:00:08]} 10. Bd3 {[%emt 0:02:03]} Bg7 {[%emt 0:07:38]} 11. O-O {[%emt 0:02:41]} O-O {[%emt 0:01:36]} 12. b4 {[%emt 0:06:51] D43: Semi-Slav: 5 Bg5 h6} (12. Rab1 a5 13. h3 Qd6 14. Rfc1 Nb6 15. Qb3 Qb4 16. Nd2 Nd7 17. Qc2 Rd8 18. Na4 Bf8 19. Nf3 Qd6 {½-½ (47) Stern,R (2521)-Rodshtein,M (2687) Germany 2016}) 12... Qd6 {[%emt 0:00:40]} 13. b5 {[%emt 0:04:10]} c5 {[%emt 0:10:50]} 14. dxc5 {[%emt 0:01:37]} Nxc5 {[%emt 0:02:19]} 15. Rad1 {[%emt 0:01:45]} Be6 {[%emt 0:02:39] [#]} 16. Bc4 $1 {[%emt 0:02:13]} Bxc3 {[%emt 0:02:04]} 17. Qxc3 {[%emt 0:00:19]} Rac8 {[%emt 0:07:41]} 18. Qd4 {[%emt 0:08:32]} Rfd8 {[%emt 0:00:06]} 19. Qh4 $146 {[%emt 0:53:13]} ({Predecessor:} 19. h3 Qb6 {½-½ (30) Bolenkov,V (2076)-Korshunov,S ICCF email 2013}) 19... Ne4 {[%emt 0:02:45]} 20. Bd3 {[%emt 0:00:21]} Nc3 {[%emt 0:02:33]} 21. Rd2 {[%emt 0:08:25]} Kg7 {[%emt 0:01:09]} 22. Qd4+ {[%emt 0:01:08]} Kg8 {[%emt 0:01:30]} 23. Rb2 {[%emt 0:10:05]} ({Not} 23. Qxa7 b6 $17) 23... Rc5 {[%emt 0:03:23]} 24. h3 {[%emt 0:04:21]} Rdc8 $11 {[%emt 0:01:44]} 25. Bxg6 {[%emt 0:05:29]} fxg6 {[%emt 0:00:16]} 26. Qf6 {[%emt 0:00:03]} Kh7 {[%emt 0:01:43]} 27. Ne5 {[%emt 0:05:14]} Rg8 {[%emt 0:00:33]} 28. f3 {[%emt 0:03:23]} Rg7 {[%emt 0:03:14]} 29. Rc2 {[%emt 0:02:26]} d4 {[%emt 0:01:35]} 30. Nd3 {[%emt 0:03:43]} Rf5 {[%emt 0:00:05]} 31. Qh4 {[%emt 0:00:48]} Bc4 {[%emt 0:42:42]} 0-1

[Event "Kashem Chowdhury Rating-A 2019"]
[Site "Dhaka"]
[Date "2019.05.07"]
[Round "4.7"]
[White "Md. Jamal Uddin"]
[Black "Avik, Sarker"]
[Result "1/2-1/2"]
[ECO "D35"]
[WhiteElo "2084"]
[BlackElo "2000"]
[Annotator "NA"]
[PlyCount "107"]
[EventDate "2019.05.04"]
[EventType "swiss"]
[EventCountry "BAN"]
[SourceTitle "playchess.com"]
[Source "ChessBase"]
[SourceQuality "1"]
[TimeControl "5400+30"]

1. d4 {[%emt 0:05:53]} d5 {[%emt 0:00:20]} 2. Nf3 {[%emt 0:00:11]} Nf6 {[%emt 0:01:09]} 3. c4 {[%emt 0:00:25]} e6 {[%emt 0:00:25]} 4. Nc3 {[%emt 0:00:55]} Be7 {[%emt 0:00:37]} 5. cxd5 {[%emt 0:01:24]} exd5 {[%emt 0:00:35]} 6. Bf4 {[%emt 0:00:23]} c6 {[%emt 0:06:47]} 7. e3 {[%emt 0:01:29]} Bf5 {[%emt 0:04:46]} 8. Nh4 {[%emt 0:01:52] D35: Queen's Gambit Declined: Exchange Variation} Bg6 {[%emt 0:06:07]} (8... Bg4 9. Be2 Bxe2 10. Qxe2 g6 11. Nf3 Nbd7 12. Bh6 Ng4 13. Bf4 Ngf6 14. O-O O-O 15. h3 Re8 {½-½ (74) Yu,Y (2751)-Jakovenko,D (2719) Shenzhen 2019}) 9. Nxg6 {[%emt 0:01:48]} hxg6 {[%emt 0:00:09]} 10. h3 {[%emt 1:20:40]} Nh5 $146 {[%emt 0:04:28]} ({Predecessor:} 10... Nbd7 11. Bd3 O-O 12. O-O Re8 13. Qc2 Nf8 14. Rac1 Ne6 15. Be5 Nd7 {1-0 (67) Munoz,C (1906)-Hilmi,P (1757) Pune 2014}) 11. Bh2 {[%emt 0:00:00]} Bd6 {[%emt 0:00:36]} 12. Bxd6 {[%emt 0:00:00]} Qxd6 {[%emt 0:00:03]} 13. Qb3 {[%emt 0:00:00]} b6 {[%emt 0:11:03]} 14. Rc1 {[%emt 0:00:00]} Nd7 {[%emt 0:02:46]} 15. Bd3 {[%emt 0:00:00]} Nhf6 {[%emt 0:03:23]} 16. Qc2 {[%emt 0:00:00]} O-O {[%emt 0:03:21]} 17. O-O {[%emt 0:00:00]} b5 {[%emt 0:08:56]} 18. Nb1 {[%emt 0:00:00]} Rac8 {[%emt 0:02:01]} 19. Nd2 {[%emt 0:00:00]} a5 {[%emt 0:05:04]} 20. Nb3 {[%emt 0:00:00]} a4 {[%emt 0:03:22]} 21. Na5 {[%emt 0:00:00]} Nb8 {[%emt 0:04:08]} 22. Nb7 {[%emt 0:00:00]} Qe7 {[%emt 0:01:00]} 23. Nc5 {[%emt 0:00:00]} Nfd7 {[%emt 0:05:44]} 24. Nxd7 {[%emt 0:00:00]} Nxd7 {[%emt 0:00:02]} 25. a3 {[%emt 0:00:00]} f5 {[%emt 0:02:19]} 26. Qd2 {[%emt 0:00:00]} Qd6 {[%emt 0:02:54]} 27. Rc2 {[%emt 0:00:00]} Nb6 {[%emt 0:01:58]} 28. Qe2 {[%emt 0:00:00]} Nc4 {[%emt 0:01:19]} 29. Qf3 {[%emt 0:00:00]} Rce8 {[%emt 0:00:39]} 30. g3 {[%emt 0:00:00]} g5 {[%emt 0:02:03]} 31. Kg2 {[%emt 0:00:00]} g6 {[%emt 0:01:37]} 32. Rh1 {[%emt 0:00:00]} Kg7 {[%emt 0:01:48]} 33. Re1 {[%emt 0:00:00]} Rh8 {[%emt 0:04:23]} 34. g4 {[%emt 0:00:00]} fxg4 {[%emt 0:06:28]} 35. Qxg4 {[%emt 0:00:00]} Qf6 {[%emt 0:00:57]} 36. Rce2 {[%emt 0:00:00]} Rh4 {[%emt 0:00:34]} 37. Qg3 {[%emt 0:00:00]} Nd6 {[%emt 0:01:31]} 38. Rc2 {[%emt 0:00:00]} Nc4 {[%emt 0:00:19]} 39. Rf1 {[%emt 0:00:00]} Reh8 {[%emt 0:01:40]} 40. Rh1 $1 {[%emt 0:00:00] [#]} g4 $1 {[%emt 0:00:59]} 41. Qc7+ {[%emt 0:00:00]} (41. Kg1 $1 $11 {keeps the balance.}) 41... Kg8 $11 {[%emt 0:01:22]} ({Black should try} 41... Qf7 $17 42. Qxf7+ Kxf7) 42. Qc8+ {[%emt 0:00:00]} Kg7 {[%emt 0:00:26]} 43. Qd7+ {[%emt 0:00:00]} Kg8 {[%emt 0:00:49]} 44. Kg1 {[%emt 0:00:00]} gxh3 {[%emt 0:00:25]} 45. Kh2 {[%emt 0:00:17]} R8h5 {[%emt 0:00:37]} 46. Rg1 {[%emt 0:04:48]} Rg5 {[%emt 0:00:21]} 47. Rxg5 {[%emt 0:00:42]} Qxg5 {[%emt 0:00:01]} 48. f4 {[%emt 0:00:30]} Qf6 {[%emt 0:00:48]} 49. Bxg6 {[%emt 0:00:18]} Qxg6 {[%emt 0:00:32]} 50. Qd8+ {[%emt 0:00:18]} Kg7 {[%emt 0:00:21]} 51. Qe7+ {[%emt 0:01:52]} Kg8 {[%emt 0:00:29]} 52. Qd8+ {[%emt 0:02:08]} Kg7 {[%emt 0:00:44]} 53. Qe7+ {[%emt 0:00:42]} Kg8 {[%emt 0:00:14]} 54. Qd8+ {[%emt 0:10:25] Qf6 [%clk 0:00:00]} 1/2-1/2

[Event "Kashem Chowdhury Rating-A 2019"]
[Site "Dhaka"]
[Date "2019.05.07"]
[Round "4.8"]
[White "Hossain, Showkat Pollab"]
[Black "Md.abu, Hanif"]
[Result "1/2-1/2"]
[ECO "B10"]
[WhiteElo "2150"]
[BlackElo "2042"]
[Annotator "NA"]
[PlyCount "129"]
[EventDate "2019.05.04"]
[EventType "swiss"]
[EventCountry "BAN"]
[SourceTitle "playchess.com"]
[Source "ChessBase"]
[SourceQuality "1"]
[TimeControl "5400+30"]

1. e4 {[%emt 0:36:59]} c6 {[%emt 0:00:00]} 2. d3 {[%emt 0:00:04]} d5 {[%emt 0:00:00]} 3. Nd2 {[%emt 0:00:01]} e5 {[%emt 0:02:12]} 4. Ngf3 {[%emt 0:00:35]} Bd6 {[%emt 0:00:09]} 5. Qe2 {[%emt 0:00:21]} Qe7 {[%emt 0:00:36]} 6. g3 {[%emt 0:01:16] B10: Caro-Kann: 2 d3 and 2 c4} (6. d4 exd4 7. exd5 cxd5 8. Nxd4 Nc6 9. N2b3 Bg4 10. f3 Be6 11. Be3 Nf6 12. Nb5 Nd7 13. Nxd6+ Qxd6 {½-½ (25) Harikrishna,P (2673)-Dreev,A (2694) Khanty-Mansiysk 2005}) 6... Nf6 {[%emt 0:00:09]} 7. Bg2 {[%emt 0:00:04]} O-O {[%emt 0:00:21]} 8. O-O {[%emt 0:00:01]} dxe4 {[%emt 0:00:15]} 9. dxe4 {[%emt 0:00:10]} Bg4 $146 {[%emt 0:01:42]} ({Predecessor:} 9... Nbd7 10. c3 a5 11. Nh4 g6 12. Nc4 Bc5 13. Bh6 Re8 14. Ne3 Nf8 15. h3 {0-1 (54) Robichaud,L (2060)-Bremner,W (1684) Quebec 2018}) 10. Nc4 {[%emt 0:00:45]} Bc7 {[%emt 0:00:57]} 11. b3 {[%emt 0:00:06]} c5 {[%emt 0:00:21]} 12. Ne3 {[%emt 0:01:05]} Be6 {[%emt 0:00:26]} 13. Nh4 {[%emt 0:02:42]} g6 {[%emt 0:00:29]} 14. Nd5 {[%emt 0:00:39]} Bxd5 {[%emt 0:01:36]} 15. exd5 {[%emt 0:00:02]} Qd6 {[%emt 0:00:53]} 16. Bb2 {[%emt 0:01:43]} Nbd7 {[%emt 0:00:26]} 17. Rad1 {[%emt 0:01:05]} Rfe8 {[%emt 0:00:18]} 18. Qd2 {[%emt 0:01:33]} ({Better is} 18. Nf3 $16) 18... b5 {[%emt 0:00:23] [#]} 19. Qg5 $1 {[%emt 0:03:27]} Kh8 {[%emt 0:03:57]} 20. Rfe1 {[%emt 0:00:55]} Ng8 {[%emt 0:01:38]} ({Black should play} 20... c4 $14) 21. f4 {[%emt 0:05:11]} f6 {[%emt 0:02:47]} 22. fxe5 {[%emt 0:00:06]} Nxe5 {[%emt 0:01:06]} 23. Qd2 {[%emt 0:04:40]} Rad8 {[%emt 0:00:47]} 24. Nf3 {[%emt 0:01:12]} Nxf3+ {[%emt 0:03:40]} 25. Bxf3 {[%emt 0:00:03]} Re7 {[%emt 0:00:55]} (25... Kg7 $16) 26. Rxe7 {[%emt 0:05:05]} Qxe7 {[%emt 0:00:09]} 27. Re1 {[%emt 0:00:24]} Be5 {[%emt 0:00:11]} 28. Bxe5 {[%emt 0:04:04]} fxe5 {[%emt 0:00:14]} 29. Qe2 {[%emt 0:01:32]} Re8 {[%emt 0:00:36]} (29... e4 $16) 30. Qxb5 {[%emt 0:00:16]} Nf6 {[%emt 0:00:05]} 31. Qc4 {[%emt 0:02:14]} e4 {[%emt 0:00:49]} 32. Bg2 {[%emt 0:04:03]} Rd8 $1 $11 {[%emt 0:00:18]} 33. Qc3 {[%emt 0:04:32]} Kg8 {[%emt 0:00:23]} 34. Qc4 {[%emt 0:01:59]} Kg7 {[%emt 0:00:14]} 35. Qc3 {[%emt 0:04:28]} ({Better is} 35. Rd1 $16) 35... Kg8 {[%emt 0:00:37]} 36. Bf1 $16 {[%emt 0:01:03]} h5 {[%emt 0:01:13]} 37. Bc4 {[%emt 0:00:18]} Kh7 {[%emt 0:00:02]} 38. Qe3 {[%emt 0:01:20]} Kg7 {[%emt 0:01:57]} 39. Qg5 {[%emt 0:01:30]} Qd6 {[%emt 0:01:13]} 40. Re2 {[%emt 0:00:57]} Re8 {[%emt 0:00:15]} 41. Qf4 {[%emt 0:02:37]} Re5 {[%emt 0:00:04]} 42. h3 {[%emt 0:02:21]} Nxd5 {[%emt 0:00:50]} 43. Bxd5 {[%emt 0:00:32]} Qxd5 {[%emt 0:00:02]} 44. Rd2 {[%emt 0:00:15]} Qe6 {[%emt 0:01:34]} 45. Rd7+ {[%emt 0:00:10]} Qxd7 {[%emt 0:00:03]} 46. Qxe5+ {[%emt 0:00:08]} Kh7 {[%emt 0:00:25]} 47. Qxe4 {[%emt 0:01:54]} Qxh3 {[%emt 0:00:08]} 48. Qe7+ {[%emt 0:00:29]} Kh6 {[%emt 0:01:11]} 49. Qf8+ {[%emt 0:00:26]} Kh7 {[%emt 0:00:08]} 50. Qf7+ {[%emt 0:00:05]} Kh6 {[%emt 0:00:11]} 51. Qf4+ {[%emt 0:00:22]} Kh7 {[%emt 0:00:04]} 52. a4 {[%emt 0:00:32]} Qd7 {[%emt 0:00:13]} 53. Kf2 {[%emt 0:00:27]} Qd5 {[%emt 0:01:13]} 54. a5 {[%emt 0:01:06]} a6 {[%emt 0:00:32]} 55. Ke2 {[%emt 0:02:01]} Kg7 {[%emt 0:02:41]} 56. Qe3 $11 {[%emt 0:01:14]} Kf6 {[%emt 0:00:23]} 57. Qf4+ {[%emt 0:03:07]} Ke6 {[%emt 0:01:08]} 58. Qf8 {[%emt 0:01:45]} Qe5+ {[%emt 0:00:25]} 59. Kf3 {[%emt 0:00:45]} Qf5+ {[%emt 0:00:03]} 60. Qxf5+ {[%emt 0:00:07]} Kxf5 {[%emt 0:00:40]} 61. c3 {[%emt 0:00:19]} Ke5 {[%emt 0:01:34]} 62. b4 {[%emt 0:00:16]} Kd5 {[%emt 0:02:05]} 63. Kf4 {[%emt 0:00:48]} cxb4 {[%emt 0:00:02]} 64. cxb4 {[%emt 0:00:06]} Kc4 {[%emt 0:00:39]} 65. Kg5 {[%emt 0:00:06]} 1/2-1/2

[Event "Kashem Chowdhury Rating-A 2019"]
[Site "Dhaka"]
[Date "2019.05.07"]
[Round "4.9"]
[White "Ahmed, Sk. Nasir"]
[Black "Ghosh, Chanchal Kumer"]
[Result "1-0"]
[ECO "B07"]
[WhiteElo "2170"]
[BlackElo "2051"]
[Annotator "NA"]
[PlyCount "109"]
[EventDate "2019.05.04"]
[EventType "swiss"]
[EventCountry "BAN"]
[SourceTitle "playchess.com"]
[Source "ChessBase"]
[SourceQuality "1"]
[TimeControl "5400+30"]

1. e4 {[%emt 0:00:00]} d6 {[%emt 0:56:47]} 2. d4 {[%emt 0:00:00]} g6 {[%emt 0:00:08]} 3. Nc3 {[%emt 0:00:00]} Bg7 {[%emt 0:03:52]} 4. Bg5 {[%emt 0:00:15]} Nd7 {[%emt 0:00:59]} 5. Qd2 {[%emt 0:00:58]} h6 {[%emt 0:00:21]} 6. Bh4 {[%emt 0:00:15]} Ngf6 {[%emt 0:00:10]} (6... c5 $11 {keeps the balance.}) 7. f4 {[%emt 0:00:15] B07: Pirc Defence: Miscellaneous Systems} c5 {[%emt 0:03:09]} (7... e5 8. dxe5 dxe5 9. Nf3 Qe7 10. Nd5 Qc5 11. Bf2 Qd6 12. fxe5 Nxe5 13. O-O-O Nxe4 14. Qe1 Nxf2 15. Nxe5 Bxe5 16. Qxf2 {0-1 (39) Amonatov,F (2598)-Grischuk,A (2726) Moscow 2007}) 8. d5 {[%emt 0:00:50]} a6 {[%emt 0:05:01]} 9. a4 {[%emt 0:01:08]} Qa5 {[%emt 0:00:47]} 10. Ra3 {[%emt 0:04:05]} Qb4 {[%emt 0:02:14]} 11. Rb3 $146 {[%emt 0:00:13]} ({Predecessor:} 11. Bd3 c4 12. Be2 g5 13. fxg5 hxg5 14. Bxg5 {0-1 (36) Jahrsdoerfer,G (2145)-Seidens,U (2186) Obernau 2009}) 11... Qa5 {[%emt 0:03:21]} 12. Nf3 {[%emt 0:01:47]} c4 {[%emt 0:04:03]} 13. Ra3 {[%emt 0:07:55]} (13. Bxc4 $14 Nc5 14. O-O) 13... Qb4 {[%emt 0:02:38]} 14. Ra2 {[%emt 0:04:30]} Ng4 {[%emt 0:02:50]} (14... Nh5 $11) 15. Be2 {[%emt 0:10:46]} Bxc3 {[%emt 0:02:25]} 16. Qxc3 {[%emt 0:00:25]} Qxc3+ {[%emt 0:00:09]} 17. bxc3 {[%emt 0:00:03]} Nc5 {[%emt 0:01:01]} 18. Nd2 {[%emt 0:00:33]} g5 {[%emt 0:01:39]} 19. Bxg4 {[%emt 0:06:54]} gxh4 {[%emt 0:01:04]} 20. Bf3 {[%emt 0:02:18]} Rg8 {[%emt 0:03:44]} 21. h3 {[%emt 0:04:04]} Rb8 {[%emt 0:01:39]} 22. Nxc4 {[%emt 0:00:46]} b6 {[%emt 0:00:33]} 23. Kf2 {[%emt 0:01:05]} Bd7 {[%emt 0:00:07]} 24. a5 {[%emt 0:06:57]} bxa5 {[%emt 0:00:30]} 25. Rxa5 {[%emt 0:01:37]} Kd8 {[%emt 0:00:40]} 26. Rha1 {[%emt 0:09:08]} Kc7 {[%emt 0:00:16]} 27. R5a2 {[%emt 0:00:49]} Rb5 {[%emt 0:00:47]} 28. Ke3 {[%emt 0:04:47]} Rgb8 {[%emt 0:00:44]} 29. Be2 {[%emt 0:00:20]} R5b7 {[%emt 0:01:03]} 30. Nd2 {[%emt 0:00:59]} Rb2 {[%emt 0:00:39]} 31. Bxa6 {[%emt 0:07:42]} Nxa6 {[%emt 0:00:50]} 32. Rxb2 {[%emt 0:00:23]} Rxb2 {[%emt 0:00:09]} 33. Rxa6 {[%emt 0:00:07]} Rxc2 {[%emt 0:00:15]} 34. Ra7+ {[%emt 0:00:22]} Kd8 {[%emt 0:00:15]} 35. Ra8+ {[%emt 0:09:14]} Bc8 {[%emt 0:00:19]} 36. Kd3 {[%emt 0:01:46]} Rb2 {[%emt 0:00:04]} 37. Nc4 {[%emt 0:00:46]} Rxg2 {[%emt 0:01:48]} 38. Nb6 {[%emt 0:01:38]} Kc7 $18 {[%emt 0:00:33]} 39. Nxc8 {[%emt 0:00:28]} Rg3+ {[%emt 0:00:40]} 40. Kd4 {[%emt 0:00:31]} Kb7 {[%emt 0:00:14]} 41. Ra7+ {[%emt 0:00:32]} Kxc8 {[%emt 0:00:06]} 42. Rxe7 {[%emt 0:00:02]} Rxh3 {[%emt 0:00:13]} 43. Rxf7 {[%emt 0:00:13]} Rh1 {[%emt 0:00:10]} 44. Rh7 {[%emt 0:01:05]} h3 {[%emt 0:01:35]} 45. Rxh6 {[%emt 0:00:03]} h2 {[%emt 0:00:09]} 46. Kc4 {[%emt 0:00:16]} Kb7 {[%emt 0:00:42]} 47. e5 {[%emt 0:02:54]} Rf1 {[%emt 0:00:59]} 48. Rxh2 {[%emt 0:00:09]} Rxf4+ {[%emt 0:00:08]} 49. Kb5 {[%emt 0:00:10]} dxe5 {[%emt 0:00:31]} 50. Rh7+ {[%emt 0:00:03]} Kb8 {[%emt 0:01:06]} 51. c4 {[%emt 0:02:17]} Rf1 {[%emt 0:00:38]} 52. d6 {[%emt 0:01:30]} Rd1 {[%emt 0:00:27]} 53. Kc6 {[%emt 0:00:19]} e4 {[%emt 0:00:18]} 54. d7 {[%emt 0:00:38]} e3 {[%emt 0:00:33]} 55. Rh8+ {[%emt 0:00:08]} 1-0

[Event "Kashem Chowdhury Rating-A 2019"]
[Site "Dhaka"]
[Date "2019.05.07"]
[Round "4.10"]
[White "Nayem, Haque"]
[Black "Ahmed, Mahtabuddin"]
[Result "1/2-1/2"]
[ECO "C68"]
[WhiteElo "2106"]
[BlackElo "2036"]
[Annotator "NA"]
[PlyCount "65"]
[EventDate "2019.05.04"]
[EventType "swiss"]
[EventCountry "BAN"]
[SourceTitle "playchess.com"]
[Source "ChessBase"]
[SourceQuality "1"]
[TimeControl "5400+30"]

1. e4 {[%emt 0:00:00]} e5 {[%emt 0:00:00]} 2. Nf3 {[%emt 0:00:00]} Nc6 {[%emt 0:00:00]} 3. Bb5 {[%emt 0:00:16]} a6 {[%emt 0:00:00]} 4. Bxc6 {[%emt 0:00:46]} dxc6 {[%emt 0:00:11]} 5. d4 {[%emt 0:00:02]} exd4 {[%emt 0:00:47]} 6. Qxd4 {[%emt 0:00:06]} Qxd4 {[%emt 0:00:49]} 7. Nxd4 {[%emt 0:00:03]} Bd7 {[%emt 0:00:53]} 8. Be3 {[%emt 0:01:05]} O-O-O {[%emt 0:07:00]} 9. Nd2 {[%emt 0:00:11]} c5 {[%emt 0:02:25]} 10. Ne2 {[%emt 0:01:13]} b6 {[%emt 0:05:14]} 11. O-O-O {[%emt 0:05:10]} Ne7 {[%emt 0:04:30]} 12. Nf3 {[%emt 0:07:38] C68: Ruy Lopez: Exchange Variation, sidelines} (12. Rhe1 f5 13. Ng3 fxe4 14. Ndxe4 Re8 15. f3 Ng6 16. c4 Nh4 17. Re2 Be7 18. Rde1 Bd8 19. Kd1 h6 {½-½ (39) Mroziak,M (2378)-Hracek,Z (2556) Czech Republic 2018}) 12... Nc6 {[%emt 0:09:28]} 13. Ng5 $146 {[%emt 0:01:57]} ({Predecessor:} 13. Nc3 h6 14. Bf4 Be6 15. Rxd8+ Nxd8 16. h3 Bd6 17. Bxd6 cxd6 18. Rd1 Kc7 19. Nd5+ Bxd5 20. exd5 {½-½ (51) Delivre,R (1880)-Benassayag,L (2096) Le Grand Bornand 2003}) 13... Be8 {[%emt 0:00:59]} 14. Nc3 {[%emt 0:04:26]} Be7 {[%emt 0:10:08]} 15. Nd5 {[%emt 0:01:30]} Bxg5 {[%emt 0:01:58]} 16. Bxg5 {[%emt 0:00:05]} Rd7 {[%emt 0:08:59]} 17. c3 {[%emt 0:04:15]} f6 {[%emt 0:01:03]} 18. Bf4 {[%emt 0:08:08]} Bf7 {[%emt 0:02:42]} 19. f3 {[%emt 0:00:41]} Rhd8 {[%emt 0:06:07]} 20. Bxc7 {[%emt 0:02:40]} Rxc7 {[%emt 0:00:25]} 21. Nxc7 {[%emt 0:00:03]} Kxc7 {[%emt 0:00:02]} 22. Rxd8 {[%emt 0:00:20]} Kxd8 {[%emt 0:01:29]} 23. b3 {[%emt 0:00:24]} Ke7 {[%emt 0:08:05]} 24. Kd2 {[%emt 0:00:21]} b5 {[%emt 0:00:48]} 25. Ke3 {[%emt 0:01:30]} b4 {[%emt 0:02:11]} (25... a5 $15) 26. Rc1 {[%emt 0:00:08]} Kd6 $11 {[%emt 0:04:16]} 27. Kd3 {[%emt 0:03:03]} a5 {[%emt 0:03:20]} 28. Rd1 {[%emt 0:00:56]} bxc3 {[%emt 0:00:39]} 29. Kxc3+ {[%emt 0:00:02]} Nd4 {[%emt 0:00:02]} 30. Kb2 {[%emt 0:01:53]} Ke5 {[%emt 0:02:13]} 31. Rc1 {[%emt 0:01:47]} Kd6 {[%emt 0:00:55]} 32. Rd1 {[%emt 0:01:00]} Ke5 {[%emt 0:00:13]} 33. Rc1 {[%emt 0:00:02]} 1/2-1/2